Cogmind - Beta 10.2 @@@ ROGUE MODE // 2020.12.01 @ 21:17:14 Player: TAQ Result: Destroyed by P-80 Master with Gamma Rifle Performance ------------- Evolutions (7) 3500 Regions Visited (16) 3200 Robots Destroyed (21) 105 Value Destroyed (538) 538 Prototype IDs (19) 380 Alien Tech Used (0) 0 Bonus (672) 672 TOTAL SCORE: 8395 Bonus ------- Follower Combat Kills 72 Aligned with FarCom 300 Met Data Miner 300 Cogmind --------- Core Integrity 0/1300 Matter 45/300 Energy 74/100 System Corruption 29% Temperature Cool (0) Movement Core (50) Location -3/Research Parts ------- > --- POWER (4) -------- (None) > --- PROPULSION (6) --- Gyrokinetic Inverter Cooled Field Propulsion Drive > --- UTILITY (8) ------ Improved Propulsion Shielding > --- WEAPON (3) ------- (None) > --- INVENTORY (4) ---- Particle Reactor Peak State ------------ > --- POWER ------------ Enhanced Nuclear Core Neutrino Core Micro Fission Core Micro Fission Core > --- PROPULSION ------- Biometal Medium Treads Armored Huge Wheel > --- UTILITY ---------- Advanced Power Amplifier Advanced Weight Redist. System Advanced Sensor Array Advanced Transmission Jammer Improved Light Armor Plating Improved Light Armor Plating Advanced Shield Generator Advanced Force Field > --- WEAPON ----------- Compact HERF Cannon Heavy Plasma Cannon Railgun > --- INVENTORY -------- High-powered Shock Rifle Power Sword [Rating: 100] Favorites ----------- Power Micro Fission Core Engine Improved Ion Engine Power Core Micro Fission Core Reactor Heavy Antimatter Reactor Propulsion Improved VTOL Module Treads Biometal Medium Treads Leg Aluminum Leg Wheel Armored Huge Wheel Hover Unit Hover Unit Flight Unit Improved VTOL Module Utility Advanced Weight Redist. System Device Advanced Weight Redist. System Storage High-capacity Battery Processor Makeshift Terrain Scan Processor Protection Improved Light Armor Plating Weapon Power Sword Energy Gun High-powered Shock Rifle Energy Cannon Compact HERF Cannon Ballistic Gun Light Assault Rifle Ballistic Cannon Advanced Assault Cannon Launcher Fusion Bomb Launcher Special Weapon Plasma Cutter Impact Weapon Heavy Flail Slashing Weapon Power Sword Build | -11 -10 -10 -10 -9 -8 -7 -6 -6 -6 -6 -5 -5 -4 -4 -4 -3 ------- Run | Scr Mat Min Exi Min Mat Fac Fac Low Low Dat Pro Fac Fac Upp Upp Res Slots Evolved 14 | . . . . . 4 2 2 . . . . 2 2 . . 2 Power 3 | . . . . . 1 1 . . . . . . 1 . . . Propulsion 4 | . . . . . 2 . 1 . . . . 1 . . . . Utility 6 | . . . . . 1 1 1 . . . . 1 . . . 2 Weapon 1 | . . . . . . . . . . . . . 1 . . . Parts Attached 156 | 9 12 2 7 . 15 7 6 5 11 . 8 22 9 17 . 26 Power 26 | 1 1 2 4 . 3 . . 2 . . 1 3 3 4 . 2 Engine 11 | 1 1 2 4 . 1 . . 1 . . 1 . . . . . Core 14 | . . . . . 2 . . 1 . . . 3 2 4 . 2 Reactor 1 | . . . . . . . . . . . . . 1 . . . Propulsion 26 | 4 5 . . . 4 . . . . . . 3 1 1 . 8 Treads 3 | . . . . . . . . . . . . . . . . 3 Leg 2 | 2 . . . . . . . . . . . . . . . . Wheel 3 | 2 . . . . . . . . . . . . . 1 . . Hover 7 | . 3 . . . . . . . . . . . . . . 4 Flight 11 | . 2 . . . 4 . . . . . . 3 1 . . 1 Utility 66 | 2 3 . 3 . 5 7 5 3 7 . 4 7 3 6 . 11 Device 36 | 1 2 . 1 . 1 5 3 1 3 . 1 6 3 1 . 8 Storage 8 | 1 1 . 2 . . . . 1 1 . 2 . . . . . Processor 5 | . . . . . . . 2 . 2 . . 1 . . . . Hackware . | . . . . . . . . . . . . . . . . . Protection 17 | . . . . . 4 2 . 1 1 . 1 . . 5 . 3 Artifact . | . . . . . . . . . . . . . . . . . Weapon 38 | 2 3 . . . 3 . 1 . 4 . 3 9 2 6 . 5 Energy Gun 4 | . . . . . . . . . . . . . 1 3 . . Energy Cannon 12 | . . . . . 1 . 1 . . . . 3 1 2 . 4 Ballistic Gun 6 | 2 3 . . . . . . . . . . . . 1 . . Ballistic Cannon 5 | . . . . . . . . . 3 . 2 . . . . . Launcher 1 | . . . . . . . . . . . . . . . . 1 Special Weapon 1 | . . . . . . . . . . . . 1 . . . . Impact Weapon 2 | . . . . . 2 . . . . . . . . . . . Slashing Weapon 7 | . . . . . . . . . 1 . 1 5 . . . . Piercing Weapon . | . . . . . . . . . . . . . . . . . Special Melee Weapon . | . . . . . . . . . . . . . . . . . Unidentified Prototypes 7 | . . . 1 . 1 . . . . . 1 . 2 . . 2 Parts Lost 56 | . 7 . . . 2 . . 2 6 . 3 9 . 8 . 19 Power 10 | . . . . . 2 . . 1 1 . 1 . . 2 . 3 Propulsion 14 | . 3 . . . . . . . 2 . . 3 . 2 . 4 Utility 22 | . 1 . . . . . . 1 3 . 2 3 . 3 . 9 Weapon 10 | . 3 . . . . . . . . . . 3 . 1 . 3 Highest Loss Streak 13 | . 7 . . . 2 . . 1 4 . 2 3 . 3 . 13 Average Slot Usage (%) 64 | . 89 57 57 57 77 76 71 68 57 53 60 72 67 60 68 54 Engine 3 | . 14 14 14 14 11 . . . . . 4 . . . . . Core 9 | . . . . . 3 15 13 13 6 6 6 14 16 14 15 11 Hover 1 | . 19 . . . . . . . . . . . . . . 1 Flight 14 | . 1 28 28 28 34 30 26 26 13 13 13 15 9 1 . . Device 18 | . 23 14 14 14 9 22 26 26 14 6 6 19 26 18 15 21 Storage 1 | . 2 . . . . . . . . 6 7 6 5 . . . Processor 1 | . . . . . . . 3 . 7 6 6 3 . . . . Protection 4 | . . . . . 15 7 . . 2 6 1 . . 10 15 8 Energy Cannon 1 | . . . . . . . 1 . . . . 2 . . . 2 Ballistic Gun 1 | . 23 . . . . . . . . . . . . 2 5 1 Slashing Weapon 2 | . . . . . . . . . 5 6 10 4 5 5 5 . Naked Turns . | . . . . . . . . . . . . . . . . . Heaviest Build 85 | 7 11 8 9 8 22 20 25 39 20 15 23 38 49 45 42 85 Greatest Support 71 | 20 20 8 8 8 24 24 18 24 21 21 21 71 48 48 46 56 Greatest Overweight (x) 4 | . 3 . 2 . 3 1 1 1 1 . 1 . 1 1 . 4 Average Overweight (x) . | . . . . . . . . . . . . . . . . . Largest Inventory Capacity 6 | 4 6 4 4 4 4 4 4 4 4 4 4 4 4 4 4 4 Average Capacity 4 | 4 4 4 4 4 4 4 4 4 4 4 4 4 4 4 4 4 Most Carried 6 | 4 6 1 4 4 4 4 4 4 4 1 4 4 4 4 4 4 Average Carried 3 | 2 3 1 2 4 3 3 3 3 2 1 2 3 3 3 4 2 Final Capacity 4 | 4 4 4 4 4 4 4 4 4 4 4 4 4 4 4 4 4 Final Carried 4 | 4 1 1 4 4 4 4 4 2 1 1 4 3 4 4 4 1 Class Distribution -------------------- 27% | Mutant 24% | Generator-Mutant 12% | Sprinter 9% | Infiltrator-Sprinter 8% | Derelict-Sprinter 7% | Generator-Sprinter 5% | Infiltrator-Mutant 3% | Generator-Assassin Dominant Class ---------------- Mutant | -10/Materials Mutant | -10/Mines Mutant | -10/Exiles Mutant | -9/Mines Sprinter | -8/Materials Sprinter | -7/Factory Infiltrator-Sprinter | -6/Factory Infiltrator-Sprinter | -6/Lower Caves Derelict-Sprinter | -6/Lower Caves Sprinter | -6/Data Miner Derelict-Sprinter | -5/Proximity Caves Generator-Sprinter | -5/Factory Generator-Mutant | -4/Factory Generator-Mutant | -4/Upper Caves Generator-Mutant | -4/Upper Caves Generator-Mutant | -3/Research Resources | -11 -10 -10 -10 -9 -8 -7 -6 -6 -6 -6 -5 -5 -4 -4 -4 -3 ----------- Run | Scr Mat Min Exi Min Mat Fac Fac Low Low Dat Pro Fac Fac Upp Upp Res Matter Collected 1800 | 324 97 . . 56 29 . 208 138 302 . 266 51 . 268 22 39 Remotely 9 | . . . . . . . . . . . 9 . . . . . Salvage Created 864 | 63 156 . . . 29 . . 53 125 . 248 . . 87 . 103 Parts 44 | 7 10 . . . . . . 1 4 . 10 . . 2 . 10 Haulers Intercepted . | . . . . . . . . . . . . . . . . . Recyclers Shooed . | . . . . . . . . . . . . . . . . . Parts Field Recycled . | . . . . . . . . . . . . . . . . . Retrieved Matter . | . . . . . . . . . . . . . . . . . Parts Self-Destructed 18 | . . . . . . . . . 4 . 14 . . . . . Prevented 1 | . . . . . . . . . 1 . . . . . . . Kills | -11 -10 -10 -10 -9 -8 -7 -6 -6 -6 -6 -5 -5 -4 -4 -4 -3 ------- Run | Scr Mat Min Exi Min Mat Fac Fac Low Low Dat Pro Fac Fac Upp Upp Res Combat Hostiles Destroyed 14 | 1 3 . . . . . . . 4 . 3 . . 1 . 2 Melee 5 | . . . . . . . . . 3 . . . . 1 . 1 Guns 3 | 1 2 . . . . . . . . . . . . . . . Cannons 4 | . . . . . . . . . 1 . 3 . . . . . AOE 2 | . 1 . . . . . . . . . . . . . . 1 Classes Destroyed 8 | 2 3 . . . . . . 1 1 . . . . 1 . . Worker 5 | 1 . . . . 1 . . . . . . . . . . 3 Recycler 1 | . 1 . . . . . . . . . . . . . . . Watcher 1 | . 1 . . . . . . . . . . . . . . . Swarmer 9 | . 3 . . . . . . . 3 . 3 . . . . . Grunt 1 | 1 . . . . . . . . . . . . . . . . Programmer 3 | . . . . . . . . . . . . . . 1 . 2 Decomposer 2 | . . . . . . . . . . . 2 . . . . . Samaritan 5 | . . . . . . . . 1 3 . . . . 1 . . Thief 1 | . . . . . . . . . 1 . . . . . . . Best Kill Streak 4 | 1 2 . . . 1 . . . 3 . 3 . . 1 . 4 Combat Bots Only 3 | 1 1 . . . . . . . 3 . 3 . . 1 . 1 Max Kills in Single Turn 3 | 1 1 . . . 1 . . 1 1 . 1 . . 1 . 3 Gunslinging . | . . . . . . . . . . . . . . . . . Exploded 1 | . 1 . . . . . . . . . . . . . . 1 Melee 1 | . . . . . . . . . 1 . . . . 1 . 1 Uniques/NPCs Destroyed . | . . . . . . . . . . . . . . . . . Combat | -11 -10 -10 -10 -9 -8 -7 -6 -6 -6 -6 -5 -5 -4 -4 -4 -3 -------- Run | Scr Mat Min Exi Min Mat Fac Fac Low Low Dat Pro Fac Fac Upp Upp Res Damage Taken 7757 | 11 604 . . 10 285 119 . 410 398 . 147 1332 25 738 170 3508 Core 2575 | . 174 . . 10 . 41 . 179 135 . 14 484 . 167 65 1306 Absorbed by Shields 306 | . . . . . . 24 . . . . . . . . . 282 Core Remaining (%) 73 | 100 . . . 26 100 94 . . . . 61 51 . . 79 . Volleys Fired 84 | 2 24 . . . . . . 2 32 . 4 8 . 6 . 6 Largest 2 | 2 2 . . . . . . 1 1 . 1 2 . 1 . 2 Hottest 184 | 40 40 . . . . . . 75 48 . 48 173 . 81 . 184 Shots Fired 109 | 4 43 . . . . . . 2 32 . 4 10 . 6 . 8 Gun 53 | 4 43 . . . . . . . . . . . . 6 . . Cannon 54 | . . . . . . . . 2 32 . 4 10 . . . 6 Launcher 2 | . . . . . . . . . . . . . . . . 2 Special . | . . . . . . . . . . . . . . . . . Kinetic 83 | 4 43 . . . . . . . 32 . 4 . . . . . Thermal 12 | . . . . . . . . . . . . 2 . 6 . 4 Explosive 2 | . . . . . . . . . . . . . . . . 2 Electromagnetic 12 | . . . . . . . . 2 . . . 8 . . . 2 Robot Hit Streak 10 | 3 5 . . . . . . . 10 . 4 2 . 6 . 8 Robot Miss Streak 7 | . 7 . . . . . . 6 7 . . 4 . . . 2 Penetration Max . | . . . . . . . . . . . . . . . . . Secondary Targets . | . . . . . . . . . . . . . . . . . Shots Hit Robots 96 | 3 19 . . . 9 . . . 36 . 9 6 . 9 . 5 Core Hits 49 | 3 8 . . . 1 . . 1 11 . 7 3 . 2 . 13 Critical Hits 1 | . . . . . . . . . . . 1 . . . . . Critical Kills 1 | . . . . . . . . . . . 1 . . . . . Critical Parts Destroyed . | . . . . . . . . . . . . . . . . . Melee Attacks 38 | . . . . . 10 . . . 17 . 5 3 . 3 . . Impact 10 | . . . . . 10 . . . . . . . . . . . Slashing 28 | . . . . . . . . . 17 . 5 3 . 3 . . Piercing . | . . . . . . . . . . . . . . . . . Sneak Attacks 6 | . . . . . 1 . . . 1 . 2 . . 2 . . Combat Hostiles 1 | . . . . . . . . . 1 . . . . . . . Follow-up Attacks 1 | . . . . . . . . . . . . 1 . . . . Damage Inflicted 3832 | 25 161 . . . 294 . . 76 1068 . 658 139 . 450 . 961 Guns 359 | 25 161 . . . . . . . . . . . . 173 . . Cannons 908 | . . . . . . . . 35 622 . 101 21 . . . 129 Explosions 844 | . . . . . . . . 41 . . . . . . . 803 Melee 1692 | . . . . . 294 . . . 446 . 557 118 . 277 . . Ramming 29 | . . . . . . . . . . . . . . . . 29 Kinetic 909 | 25 161 . . . . . . . 622 . 101 . . . . . Thermal 294 | . . . . . . . . . . . . . . 173 . 121 Explosive 803 | . . . . . . . . . . . . . . . . 803 Electromagnetic 105 | . . . . . . . . 76 . . . 21 . . . 8 Impact 294 | . . . . . 294 . . . . . . . . . . . Slashing 1398 | . . . . . . . . . 446 . 557 118 . 277 . . Piercing . | . . . . . . . . . . . . . . . . . Highest Corruption 28 | . . . . . . . . . . . . 4 . 4 4 28 Average Corruption 6 | . . . . . . . . . . . . 2 . 3 4 17 Corruption Purged . | . . . . . . . . . . . . . . . . . Effects 27 | . . . . . . . . . . . . 5 . 5 2 15 Message Errors 5 | . . . . . . . . . . . . 1 . 1 . 3 Matter Fused 6 | . . . . . . . . . . . . 1 . 2 1 2 Heat Flow Errors 4 | . . . . . . . . . . . . 1 . 1 1 1 Energy Discharges 3 | . . . . . . . . . . . . 1 . 1 . 1 Parts Rejected 2 | . . . . . . . . . . . . . . . . 2 Data Loss (minor) 2 | . . . . . . . . . . . . . . . . 2 Misdirections 4 | . . . . . . . . . . . . . . . . 4 Targeting Errors 1 | . . . . . . . . . . . . 1 . . . . Overload Shots . | . . . . . . . . . . . . . . . . . Overflow Damage 458 | . . . . . 87 . . . 153 . 83 . . 123 . 12 Projectiles 75 | . . . . . . . . . 75 . . . . . . . Explosions 12 | . . . . . . . . . . . . . . . . 12 Melee 371 | . . . . . 87 . . . 78 . 83 . . 123 . . Knockbacks 7 | . . . . . 1 . . . 6 . . . . . . . Impact 1 | . . . . . 1 . . . . . . . . . . . Kinetic 6 | . . . . . . . . . 6 . . . . . . . Secondary . | . . . . . . . . . . . . . . . . . Self-Inflicted Damage 265 | . . . . . . . . . . . . . . . . 265 Shots 3 | . . . . . . . . . . . . . . . . 3 Rammed 4 | . . . . . . . . . . . . . . . . 4 Targets Rammed 4 | . . . . . . . . . . . . . . . . 4 Kicked . | . . . . . . . . . . . . . . . . . Crushed . | . . . . . . . . . . . . . . . . . Highest Temperature 258 | 6 12 . . . 42 58 . 68 . . 10 198 1 252 120 258 Average Temperature 72 | 6 5 . . . 11 28 . 15 . . 6 96 1 108 56 116 Received Heat Transfer 663 | 6 6 . . 6 99 12 . 165 18 . 21 192 9 27 51 51 Effects 1 | . . . . . . . . . . . . . . . . 1 Energy Bleed 1 | . . . . . . . . . . . . . . . . 1 Siege Activations . | . . . . . . . . . . . . . . . . . Robots Corrupted . | . . . . . . . . . . . . . . . . . Combat Hostiles . | . . . . . . . . . . . . . . . . . Parts Fried 1 | . . . . . . . . 1 . . . . . . . . Impact Corruptions 3 | . . . . . 3 . . . . . . . . . . . Robots Melted . | . . . . . . . . . . . . . . . . . Combat Hostiles . | . . . . . . . . . . . . . . . . . Parts Melted 2 | . 1 . . . . . . . . . . . . 1 . . Heat Transferred 372 | . . . . . . . . . . . . . . 222 . 150 Parts Sabotaged . | . . . . . . . . . . . . . . . . . Parts Stolen 2 | . . . . . . . . . 2 . . . . . . . Parts Stripped . | . . . . . . . . . . . . . . . . . Power Chain Reactions 1 | . . . . . . . . 1 . . . . . . . . Missiles Intercepted . | . . . . . . . . . . . . . . . . . Alert | -11 -10 -10 -10 -9 -8 -7 -6 -6 -6 -6 -5 -5 -4 -4 -4 -3 ------- Run | Scr Mat Min Exi Min Mat Fac Fac Low Low Dat Pro Fac Fac Upp Upp Res Peak Influence 692 | 25 358 184 . . 50 115 86 . . . . 692 353 . . 181 Initial 333 | . 16 139 . . . 13 56 . . . . 77 333 . . 98 Average 129 | 8 137 141 . . 16 70 70 . . . . 290 337 . . 81 Maximum Alert Level 2 | . 1 . . . . . . . . . . 2 1 . . . Low Security (%) 81 | 100 66 100 . 100 100 100 100 . . . . 45 . . . 100 Level 1 12 | . 33 . . . . . . . . . . 21 100 . . . Level 2 6 | . . . . . . . . . . . . 32 . . . . Level 3 . | . . . . . . . . . . . . . . . . . Level 4 . | . . . . . . . . . . . . . . . . . Level 5 . | . . . . . . . . . . . . . . . . . High Security . | . . . . . . . . . . . . . . . . . Max Security . | . . . . . . . . . . . . . . . . . Squads Dispatched 17 | . 2 . . . 1 3 . . . . . 5 . . . 6 Investigation 3 | . . . . . . . . . . . . 1 . . . 2 Extermination 5 | . . . . . . 1 . . . . . 2 . . . 2 Reinforcement 9 | . 2 . . . 1 2 . . . . . 2 . . . 2 Assault . | . . . . . . . . . . . . . . . . . Garrison . | . . . . . . . . . . . . . . . . . Intercept . | . . . . . . . . . . . . . . . . . Construction Impeded . | . . . . . . . . . . . . . . . . . Haulers Reinforced . | . . . . . . . . . . . . . . . . . Stealth | -11 -10 -10 -10 -9 -8 -7 -6 -6 -6 -6 -5 -5 -4 -4 -4 -3 --------- Run | Scr Mat Min Exi Min Mat Fac Fac Low Low Dat Pro Fac Fac Upp Upp Res Distress Signals 9 | . 2 . . . . 1 1 . . . . 3 . . . 2 Communications Jammed 9 | . . . . . . . . . 1 . . . . . . 8 Distress Signals 9 | . . . . . . . . . 1 . . . . . . 8 Times Spotted 215 | 1 33 4 . 3 7 6 1 37 15 . 7 50 1 15 4 31 Peak Tracking Total 14 | 1 10 3 . 3 6 4 3 13 10 . 4 14 1 9 4 13 Tactical Retreats 40 | . 5 1 . . . 3 1 10 3 . 1 8 . 4 . 4 Traps | -11 -10 -10 -10 -9 -8 -7 -6 -6 -6 -6 -5 -5 -4 -4 -4 -3 ------- Run | Scr Mat Min Exi Min Mat Fac Fac Low Low Dat Pro Fac Fac Upp Upp Res Traps Triggered 5 | . 1 . . . . 3 1 . . . . . . . . . Indirectly . | . . . . . . . . . . . . . . . . . Trap Hack Attempts . | . . . . . . . . . . . . . . . . . Triggered . | . . . . . . . . . . . . . . . . . Disarmed 4 | . . . . . . . . . . . . . 4 . . . Reprogrammed . | . . . . . . . . . . . . . . . . . Reused . | . . . . . . . . . . . . . . . . . Traps Reconfigurated 9 | . . . . . . 6 3 . . . . . . . . . Traps Extracted . | . . . . . . . . . . . . . . . . . Installed . | . . . . . . . . . . . . . . . . . Triggered 2 | . . . . . . . . . 2 . . . . . . . Machines | -11 -10 -10 -10 -9 -8 -7 -6 -6 -6 -6 -5 -5 -4 -4 -4 -3 ---------- Run | Scr Mat Min Exi Min Mat Fac Fac Low Low Dat Pro Fac Fac Upp Upp Res Machines Disabled 5 | . . . . . . . . . 1 . . 1 . . . 3 Max in Single Turn 1 | . . . . . . . . . 1 . . 1 . . . 1 Machines Sabotaged . | . . . . . . . . . . . . . . . . . Garrisons Compromised . | . . . . . . . . . . . . . . . . . Overloaded Fab Kills . | . . . . . . . . . . . . . . . . . Fab Network Shutdowns . | . . . . . . . . . . . . . . . . . Hacking | -11 -10 -10 -10 -9 -8 -7 -6 -6 -6 -6 -5 -5 -4 -4 -4 -3 --------- Run | Scr Mat Min Exi Min Mat Fac Fac Low Low Dat Pro Fac Fac Upp Upp Res Machines Accessed 32 | . 1 . 4 . . 2 1 . . 4 . 11 5 . . 4 Terminals 14 | . . . . . . 1 . . . . . 7 4 . . 2 Fabricators 4 | . . . . . . 1 . . . . . 2 1 . . . Repair Stations 3 | . 1 . . . . . . . . . . 2 . . . . Recycling Units 1 | . . . . . . . . . . . . . . . . 1 Scanalyzers . | . . . . . . . . . . . . . . . . . Garrison Access 2 | . . . . . . . 1 . . . . . . . . 1 Total Hacks 119 | . 1 . 45 . . 3 2 . . 27 . 22 12 . . 7 Successful 97 | . 1 . 45 . . 2 1 . . 27 . 10 7 . . 4 Failed 21 | . . . . . . 1 1 . . . . 12 4 . . 3 Catastrophic 6 | . . . . . . 1 . . . . . 1 2 . . 2 Database Lockouts 1 | . . . . . . . . . . . . . 1 . . . Manual 9 | . . . 4 . . . . . . 3 . 2 . . . . Terminals 28 | . . . . . . 2 . . . . . 13 11 . . 2 Fabricators 7 | . . . . . . 1 . . . . . 5 1 . . . Repair Stations 5 | . 1 . . . . . . . . . . 4 . . . . Recycling Units 3 | . . . . . . . . . . . . . . . . 3 Scanalyzers . | . . . . . . . . . . . . . . . . . Garrison Access 4 | . . . . . . . 2 . . . . . . . . 2 Terminal Hacks 85 | . . . 45 . . 1 . . . 27 . 4 7 . . 1 Record 63 | . . . 45 . . 1 . . . 11 . 2 4 . . . Part Schematic 8 | . . . . . . . . . . 8 . . . . . . Robot Schematic 5 | . . . . . . . . . . 5 . . . . . . Prototype ID Bank 3 | . . . . . . . . . . 3 . . . . . . Branch Access Points 1 | . . . . . . . . . . . . 1 . . . . Disarm Traps 1 | . . . . . . . . . . . . . 1 . . . Registered Components 1 | . . . . . . . . . . . . . 1 . . . Zone Layout 3 | . . . . . . . . . . . . 1 1 . . 1 Fabricator Hacks 4 | . . . . . . 1 . . . . . 3 . . . . Network Status 1 | . . . . . . 1 . . . . . . . . . . Load Schematic 2 | . . . . . . . . . . . . 2 . . . . Build 1 | . . . . . . . . . . . . 1 . . . . Repair Station Hacks 4 | . 1 . . . . . . . . . . 3 . . . . Scan Component 2 | . 1 . . . . . . . . . . 1 . . . . Repair 1 | . . . . . . . . . . . . 1 . . . . Refit 1 | . . . . . . . . . . . . 1 . . . . Recycling Unit Hacks 3 | . . . . . . . . . . . . . . . . 3 Recycle Component 1 | . . . . . . . . . . . . . . . . 1 Process 1 | . . . . . . . . . . . . . . . . 1 Retrieve Matter 1 | . . . . . . . . . . . . . . . . 1 Scanalyzer . | . . . . . . . . . . . . . . . . . Garrison Access Hacks 1 | . . . . . . . 1 . . . . . . . . . Unlock Access 1 | . . . . . . . 1 . . . . . . . . . Unauthorized Hacks . | . . . . . . . . . . . . . . . . . Terminals . | . . . . . . . . . . . . . . . . . Fabricators . | . . . . . . . . . . . . . . . . . Repair Stations . | . . . . . . . . . . . . . . . . . Recycling Units . | . . . . . . . . . . . . . . . . . Scanalyzers . | . . . . . . . . . . . . . . . . . Garrison Access . | . . . . . . . . . . . . . . . . . Data Cores Recovered . | . . . . . . . . . . . . . . . . . Used . | . . . . . . . . . . . . . . . . . Hacking Detections 24 | . 1 . . . . 1 1 . . . . 12 5 . . 4 Full Trace Events 3 | . . . . . . . . . . . . 1 . . . 2 Feedback Events . | . . . . . . . . . . . . . . . . . Feedback Blocked . | . . . . . . . . . . . . . . . . . Robot Schematics Acquired 5 | . . . . . . . . . . 5 . . . . . . Robots Built . | . . . . . . . . . . . . . . . . . Matter . | . . . . . . . . . . . . . . . . . Time . | . . . . . . . . . . . . . . . . . Total Robot Build Rating . | . . . . . . . . . . . . . . . . . Part Schematics Acquired 8 | . . . . . . . . . . 8 . . . . . . Parts Built 1 | . . . . . . . . . . . . 1 . . . . Matter 318 | . . . . . . . . . . . . 318 . . . . Time 84 | . . . . . . . . . . . . 84 . . . . Total Part Build Rating 6 | . . . . . . . . . . . . 6 . . . . Parts Repaired 1 | . . . . . . . . . . . . 1 . . . . Time 60 | . . . . . . . . . . . . 60 . . . . Parts Recycled 1 | . . . . . . . . . . . . . . . . 1 Recycled Matter 22 | . . . . . . . . . . . . . . . . 22 Retrieved Matter . | . . . . . . . . . . . . . . . . . Retrieved Components . | . . . . . . . . . . . . . . . . . Parts Scanalyzed . | . . . . . . . . . . . . . . . . . Part Schematics Acquired . | . . . . . . . . . . . . . . . . . Parts Damaged . | . . . . . . . . . . . . . . . . . Bothacking | -11 -10 -10 -10 -9 -8 -7 -6 -6 -6 -6 -5 -5 -4 -4 -4 -3 ------------ Run | Scr Mat Min Exi Min Mat Fac Fac Low Low Dat Pro Fac Fac Upp Upp Res Used RIF Installer . | . . . . . . . . . . . . . . . . . Robots Hacked . | . . . . . . . . . . . . . . . . . Non-combat . | . . . . . . . . . . . . . . . . . Combat . | . . . . . . . . . . . . . . . . . Robot Hacks Applied . | . . . . . . . . . . . . . . . . . Relay Couplers Released . | . . . . . . . . . . . . . . . . . Robots Rewired . | . . . . . . . . . . . . . . . . . Allies Hacked . | . . . . . . . . . . . . . . . . . Hacks Repelled . | . . . . . . . . . . . . . . . . . Allies | -11 -10 -10 -10 -9 -8 -7 -6 -6 -6 -6 -5 -5 -4 -4 -4 -3 -------- Run | Scr Mat Min Exi Min Mat Fac Fac Low Low Dat Pro Fac Fac Upp Upp Res Total Allies 1 | . . . . . . . . . . . 1 . . . . . Largest Group 1 | . . . . . . . . . . . 1 . . . . . Highest-Rated Group 94 | . . . . . . . . . . . 94 . . . . . Highest-Rated Ally 94 | . . . . . . . . . . . 94 . . . . . Total Orders . | . . . . . . . . . . . . . . . . . Ally Attacks 9 | . . . . . . . . . . . 9 . . . . . Total Damage 377 | . . . . . . . . . . . 377 . . . . . Kills 2 | . . . . . . . . . . . 2 . . . . . Allies Corrupted 1 | . . . . . . . . . . . 1 . . . . . Allies Melted 1 | . . . . 1 . . . . . . . . . . . . Intel | -11 -10 -10 -10 -9 -8 -7 -6 -6 -6 -6 -5 -5 -4 -4 -4 -3 ------- Run | Scr Mat Min Exi Min Mat Fac Fac Low Low Dat Pro Fac Fac Upp Upp Res Robot Analysis Total . | . . . . . . . . . . . . . . . . . Derelict Logs Recovered 7 | . . . . 1 . . . 2 . . 2 . . 1 1 . Drone Launches . | . . . . . . . . . . . . . . . . . Drone Recoveries . | . . . . . . . . . . . . . . . . . Exploration | -11 -10 -10 -10 -9 -8 -7 -6 -6 -6 -6 -5 -5 -4 -4 -4 -3 ------------- Run | Scr Mat Min Exi Min Mat Fac Fac Low Low Dat Pro Fac Fac Upp Upp Res Turns Passed 5274 | 139 279 68 569 118 166 386 237 373 340 32 248 586 168 574 67 924 Spaces Moved 8743 | 100 169 133 830 318 228 608 548 1066 679 99 542 1528 272 673 59 891 Core 548 | 26 20 . 163 . 3 . . . . . . . . 142 . 194 Treads . | . . . . . . . . . . . . . . . . . Legs 78 | 61 17 . . . . . . . . . . . . . . . Wheels 872 | 13 . . . . . . . . . . . . . 253 59 547 Hover 121 | . 117 . . . . . . . . . . . . . . 4 Flight 7124 | . 15 133 667 318 225 608 548 1066 679 99 542 1528 272 278 . 146 Fastest Speed 25 | 50 37 37 37 37 26 26 29 26 29 32 32 25 37 37 100 35 Average Speed 44 | 96 73 37 60 37 30 28 37 31 32 32 33 28 39 74 100 80 Slowest Speed 250 | 120 200 37 150 37 200 99 99 102 102 32 102 40 117 100 100 250 Overloaded Moves . | . . . . . . . . . . . . . . . . . Propulsion Burnouts . | . . . . . . . . . . . . . . . . . Robots Hopped 44 | . . 7 . . 1 . 1 1 1 . . 26 . 2 . 5 Cave-ins Triggered . | . . . . . . . . . . . . . . . . . Exploration Rate (%) 45 | 9 38 12 93 71 20 21 16 88 82 75 69 43 5 91 9 23 Regions Visited 16 Branch Regions 9 Pre-discovered Areas 4 | . . . 1 1 . . . . . 1 1 . . . . . Known Exits Taken 1 | . . . . . . . . 1 . . . . . . . . Unknown Exits Taken 15 | 1 1 1 1 1 1 1 1 . 1 1 1 1 1 1 1 . Scrap Searched 19 | . . . . 2 . . . 7 3 . 1 . . 5 1 . Spaces Dug . | . . . . . . . . . . . . . . . . . Terrain Destroyed 91 | . . . . . . . . . 6 . . 1 . . . 84 Melee . | . . . . . . . . . . . . . . . . . Projectile 7 | . . . . . . . . . 6 . . 1 . . . . AOE 84 | . . . . . . . . . . . . . . . . 84 Terrain Rammed . | . . . . . . . . . . . . . . . . . Walls Destroyed . | . . . . . . . . . . . . . . . . . Machines Disabled . | . . . . . . . . . . . . . . . . . Actions | -11 -10 -10 -10 -9 -8 -7 -6 -6 -6 -6 -5 -5 -4 -4 -4 -3 --------- Run | Scr Mat Min Exi Min Mat Fac Fac Low Low Dat Pro Fac Fac Upp Upp Res Total 9908 | 138 293 143 903 317 301 822 578 1101 746 98 599 1643 333 734 67 1092 Wait 683 | 15 66 16 44 . 39 152 . 26 . . 30 85 41 22 9 138 Move 8643 | 99 168 120 829 317 225 607 545 1063 676 98 541 1477 271 668 58 881 Hop 40 | . . 5 . . 1 . 1 1 1 . . 24 . 2 . 5 Pick Up 91 | 11 11 . 10 . 4 3 2 1 3 . 6 10 5 9 . 16 Fast Attach 43 | 2 2 . 1 . 8 . 4 1 3 . 3 12 4 1 . 2 Attach 91 | 5 9 . 4 . 6 3 2 4 7 . 5 7 4 13 . 22 Detach 35 | . . . 5 . 3 1 1 1 5 . 3 2 2 5 . 7 Swap 22 | 2 1 2 2 . 1 4 . . 1 . . 3 1 3 . 2 Drop 68 | 2 12 . 8 . 4 3 5 2 1 . 2 13 5 2 . 9 Fire 84 | 2 24 . . . . . . 2 32 . 4 8 . 6 . 6 Melee 37 | . . . . . 10 . . . 17 . 5 2 . 3 . . Ram 4 | . . . . . . . . . . . . . . . . 4 Kick . | . . . . . . . . . . . . . . . . . Crush . | . . . . . . . . . . . . . . . . . Escape Stasis 67 | . . . . . . 49 18 . . . . . . . . . Rewire . | . . . . . . . . . . . . . . . . . Trap . | . . . . . . . . . . . . . . . . . Miscellaneous . | . . . . . . . . . . . . . . . . . Route ------- -11/Scrapyard -10/Materials -10/Mines (discovered 2 exits: [*Mat] / *Exi) -10/Exiles (discovered 2 exits: [*Min x2]) -9/Mines -8/Materials -7/Factory (discovered 2 exits: *Fac / [*Low]) -6/Factory (discovered 2 exits: [*Low] / Gar) -6/Lower Caves -6/Lower Caves -6/Data Miner -5/Proximity Caves -5/Factory (discovered 3 exits: *Fac / *Upp x2) -4/Factory -4/Upper Caves -4/Upper Caves -3/Research (discovered 2 exits: Res / Qua) History --------- Turn | Location | Event 2 | -11/Scrapyard | Met Revision 17 95 | -11/Scrapyard | Discovered new exit (range 8) 140 | -11/Scrapyard | Entered Materials 265 | -10/Materials | Discovered new exit (range 13) 303 | -10/Materials | Build established: Mutant 396 | -10/Materials | Core integrity fell below 50% 419 | -10/Materials | Lost 7 parts (3n1u3w) 419 | -10/Materials | Entered Mines 444 | -10/Mines | Discovered new exit (range 10) 461 | -10/Mines | Deemed a non-threat by the Exiles lab entrance 461 | -10/Mines | Discovered new exit (range 5) 487 | -10/Mines | Entered Exiles 539 | -10/Exiles | Met 8R-AWN 573 | -10/Exiles | Met EX-HEX 657 | -10/Exiles | Met EX-DEC 695 | -10/Exiles | Learned location of Zion (-7) 808 | -10/Exiles | Discovered new exit (range 14) 839 | -10/Exiles | Visited The Gauntlet 908 | -10/Exiles | Discovered new exit (range 14) 965 | -10/Exiles | Met EX-BIN 980 | -10/Exiles | Aligned with FarCom system 980 | -10/Exiles | Given EX-Vault access code 999 | -10/Exiles | Opened EX-Vault 1001 | -10/Exiles | Found Prototype Device 1001 | -10/Exiles | Identified Trap Reconfigurator 1029 | -10/Exiles | Warned to stay clear of 0b10 Research branches 1056 | -10/Exiles | Left Exiles lab with Trap Reconfigurator 1056 | -10/Exiles | Entered Mines 1066 | -9/Mines | Met a Derelict bent on vengeance 1067 | -9/Mines | Discovered new exit (range 14) 1092 | -9/Mines | Received a Rocket Launcher from a helpful Derelict 1095 | -9/Mines | Assembled infested the area 1100 | -9/Mines | Assisted by a Guerilla fighting off Assembled 1174 | -9/Mines | Entered Materials 1174 | -8/Materials | Evolved 4 slots: Power x1, Propulsion x2, Utility x1 1338 | -8/Materials | Discovered new exit (range 5) 1340 | -8/Materials | Entered Factory 1340 | -7/Factory | Evolved 2 slots: Power x1, Utility x1 1410 | -7/Factory | Discovered new exit (range 9) 1700 | -7/Factory | Discovered new exit (range 14) 1726 | -7/Factory | Entered another Factory area 1726 | -6/Factory | Evolved 2 slots: Propulsion x1, Utility x1 1822 | -6/Factory | Identified exit to Garrison 1847 | -6/Factory | Discovered new exit (range 15) 1963 | -6/Factory | Entered Lower Caves 2018 | -6/Lower Caves | Attracted the attention of an 0b10 checkpoint 2060 | -6/Lower Caves | Learned Factory trap positions 2094 | -6/Lower Caves | Attracted the attention of an 0b10 base 2152 | -6/Lower Caves | Identified exit to Lower Caves 2336 | -6/Lower Caves | Entered another Lower Caves area 2399 | -6/Lower Caves | Lost 4 parts (1p2n1u) 2443 | -6/Lower Caves | Imp. Maneuvering Thrusters stolen by Master Thief 2470 | -6/Lower Caves | Trap Reconfigurator stolen by Master Thief 2667 | -6/Lower Caves | Discovered new exit (range 6) 2676 | -6/Lower Caves | Entered Data Miner 2676 | -6/Data Miner | Discovered new exit (range 6) 2683 | -6/Data Miner | Met Data Miner 2692 | -6/Data Miner | Learned location of Section 7 (-3) 2692 | -6/Data Miner | Acquired the access code to Warlord's prototype stash 2699 | -6/Data Miner | Received God Mode back door access code from Data Miner 2708 | -6/Data Miner | Entered Proximity Caves 2770 | -5/Proximity Caves | Escorted by Enhanced Grunt 2891 | -5/Proximity Caves | Learned Factory terminal intel 2930 | -5/Proximity Caves | Attracted the attention of an 0b10 checkpoint 2954 | -5/Proximity Caves | Spotted B-75 Beast 2954 | -5/Proximity Caves | Discovered new exit (range 4) 2956 | -5/Proximity Caves | Entered Factory 2956 | -5/Factory | Evolved 2 slots: Propulsion x1, Utility x1 2957 | -5/Factory | Loaded intel: 111 trap records 2958 | -5/Factory | Loaded intel: 20 terminal locations 3064 | -5/Factory | Fabricated Exp. Cesium-ion Thruster (x1) 3108 | -5/Factory | Build established: Derelict-Sprinter 3156 | -5/Factory | Spotted B-75 Beast 3258 | -5/Factory | Repaired Imp. VTOL Module? 3327 | -5/Factory | Identified exit to Upper Caves 3533 | -5/Factory | Discovered new exit (range 2) 3542 | -5/Factory | Entered another Factory area 3542 | -4/Factory | Evolved 2 slots: Power x1, Weapon x1 3569 | -4/Factory | Lost 3 parts (1n2u) 3572 | -4/Factory | Central database locked down 3670 | -4/Factory | Discovered new exit (range 16) 3710 | -4/Factory | Entered Upper Caves 3733 | -4/Upper Caves | Attracted the attention of an 0b10 checkpoint 3747 | -4/Upper Caves | Attracted the attention of an 0b10 outpost 3777 | -4/Upper Caves | Lost 3 parts (1p1n1u) 3818 | -4/Upper Caves | Build established: Generator-Mutant 3890 | -4/Upper Caves | Lost 3 parts (1p1n1u) 3960 | -4/Upper Caves | Discovered new exit (range 5) 4065 | -4/Upper Caves | Learned location of 2 exits from Research 4284 | -4/Upper Caves | Entered another Upper Caves area 4326 | -4/Upper Caves | Learned Research security intel 4346 | -4/Upper Caves | Discovered new exit (range 6) 4351 | -4/Upper Caves | Entered Research 4351 | -3/Research | Evolved 2 slots: Utility x2 4352 | -3/Research | Identified exit to Quarantine 4352 | -3/Research | Identified exit to Research 4645 | -3/Research | Spotted B-86 Titan 4895 | -3/Research | Incoming investigation squad redirected 5101 | -3/Research | Core integrity fell below 50% 5116 | -3/Research | System corruption reached 10% 5125 | -3/Research | Lost 13 parts (3p1n7u2w) 5168 | -3/Research | Found Fusion Bomb Launcher 5222 | -3/Research | Core integrity fell below 20% 5252 | -3/Research | Lost 6 parts (3n2u1w) 5269 | -3/Research | Incoming investigation squad redirected 5275 | -3/Research | Destroyed by P-80 Master with Gamma Rifle Last Messages --------------- 05221_ Slug penetrates Wall. 05221_ Insulated Plating destroyed. 05224_ System corrupted: Gravmag Array rejected. 05235_ Acquired Particle Reactor. 05240_ Slug penetrates Wall. 05242_ System corrupted: Matter fused (-8). 05243_ Slug penetrates Wall. 05246_ Connecting with Garrison Access... 05246_ ALERT: Suspicious activity at Garrison Access R002. Dispatching Investigation squad. 05254_ O-16 Technician: "IFF HANDSHAKE FAILED. SECURING TERMINAL." 05261_ ALERT: Hostiles spotted, dispatching reinforcements to Terminal R004. 05264_ System corrupted: Matter fused (-6). 05266_ K-01 Serf cleans the Recycling Unit. 05269_ ALERT: Higher priority target reported, redirecting investigation. 05275_ Slammed into P-80 Master. 05275_ Destabilizing: Core damaged (-65). [Achievement: First Step to Greatness] [Achievement: 5k Club] Map ----- +----------------------------------------------------+ | ????????????????????????????????????# | | ?????????????????????????????????????# | | ????????????????????????????????????## | | ????????????????????????????????????# | | ????????????????????????????????????# | | ????????????????????????????????????# | | ?????????????????????????????######## | | ?????????????????????????????# ## | | ?????????????????????????????# ## | | ?????????????????????????????# !!/ / | | ?????????????????????????????# [ # | | ?????????????????????????????# !!# ##### | | ?????????????????????????????# # | | ?????????????????????????????######## ## ### # | | ???????????????????????????????????? ## | | ????????????????????##########????# # | | ????????????????????# #???## # | | ????????????????????# #???# | | ????????????????????# #???# # | | ????????????????????# #???# # | | ????????????????????# #???# | | ????????????????????# #???# | | ????????????????????# #????# %! # | | ????????????????????# #????# # | | ????????##########??# #????# #?# | | ????????# ########@############# ### | | ???????## # pp | | ???????# !* "" # | | ????????#! "" # | | ????????# T" Y p ggg | | ????????# "" # ####+#############g####### # | | ????????# "" # p # #??# # # | | ????????# # p # #??# # # | | ????????# # # """ #??# # # | | ????????########## # "Y" #??# # | | ?????????????????# # " " #??# # | | ?????????????????# + #??# # | | ?????????????????# # #??# # | | ?????????????????# # = #??# # | | ???############### #= #??# #? | | ???# ##########??# #?? | | ???# #???????????# ! #?? | | ???# #???????????# #?? | | ???# ##########################?? | | ???# ####+##### # #??????????????? | | ???# #????????# # #??????????????? | | #??# #?????? # # """ #??????????????? | | ??# #???? # + """ # ???????????? | | ??# #?? # # """ + ??????????? | | ??# #"" # # #??????????????? | +----------------------------------------------------+ Best States ------------- Heat Dissipation 46 Coolant Potential 80 Energy Generation 54 Energy Capacity 1010 Matter Stores 340 Matter Capacity 350 Sight Range 16 Robot Scan Range 16 Terrain Scan Density 10 ECM Strength 3 Jamming Range 16 Cloak Strength 2 Power Amplification 30 Additional Mass Support 18 Armor Coverage 450 Resistance: EM 15 Propulsion Shielding 66 Evasion (%) 74 Core Analysis 6 Salvage Targeting 4 Item Schematics ----------------- Combat Drone Bay | -6/Data Miner | Free Lgt. Regenerative Plating | -6/Data Miner | Free Cmb. Gravmag System | -6/Data Miner | Free Exp. Cesium-ion Thruster | -6/Data Miner | Free Exp. Terrain Scanner | -6/Data Miner | Free Tactical Coordination Suite | -6/Data Miner | Free Plasma Sword | -6/Data Miner | Free Kinetic Spear | -6/Data Miner | Free Robot Schematics ------------------ S-27 Virus | -6/Data Miner | Free G-50 Soldier | -6/Data Miner | Free L-41 Fighter | -6/Data Miner | Free P-70 Sage | -6/Data Miner | Free I-36 Angel | -6/Data Miner | Free Fabricated ------------ Exp. Cesium-ion Thruster | x1 | -5/Factory Alien Tech Used ----------------- None Achievements -------------- 5k Club Can't Catch Me Crack Shot Cya! Dangerous Findings First Step to Greatness Fist Fight I'm Back, Baby! Just What I Needed Leap Before You Look Librarian Made in Tau Ceti IV One Hack Too Far Part-time Mechanic Respectable Loadout Risk Taker Serviceable Loadout Slippery One Storm Trooper System Compromised The Oracle Tourist Uninvited Guest Challenges ------------ None Game ------ Seed MappingTachyonSuite Manual? 0 Play Time 04:48:05 Cumulative 11.1 hours Start 2020.12.01 @ 01:18:43 End 2020.12.01 @ 21:17:14 Sessions 20 Manual Loads 0 Difficulty Rogue Special Mode None Game No. 3 Rogue 3 Adventurer 0 Explorer 0 Win Type - Total 0 Types 0/0/0/0/0/0/0/0/0 Lore% 12 Gallery% 13 Achievement% 8 Wizard Run 0 Options --------- ASCII 0 Keyboard 0 Movement Mouse Keybinds 0 Fullscreen 2 Font 16/SmallcapsGlow Map View 75x55 Tactical HUD 1 Map Filters NONE Filters NONE Steam 0 RUN: 419065ed-359a-4787-9138-82eec1e2ad33